fUST/lending_fUST_20240708
["ID","MTS","AMOUNT","RATE_DAILY","PERIOD"]
[331439580,1720409442266,-500.0,0.00098253,120]
[331439581,1720409442276,-4192.85,0.00098253,120]
[331439582,1720409442286,-500.0,0.00098254,120]
[331439583,1720409442296,-500.0,0.00098254,120]
[331439584,1720409442305,-1114.86,0.00098254,120]
[331439585,1720409442315,-611.79,0.00098254,120]
[331439586,1720409442325,-3358.1,0.00098254,120]
[331439587,1720409442335,-500.0,0.00098254,120]
[331439588,1720409442345,-4143.35,0.00098254,120]
[331439589,1720409442355,-824.37,0.00098254,120]
[331439590,1720409442368,-3000.0,0.00098541,120]
[331439591,1720409442378,-151.0,0.001,120]
[331439592,1720409442388,-500.0,0.00100155,120]
[331439593,1720409442398,-150.0,0.001013,60]
[331439594,1720409442408,-150.0,0.001023,60]
[331439595,1720409442419,-3000.0,0.00102624,120]
[331439596,1720409442430,-200.0,0.001033,60]
[331439597,1720409442439,-500.0,0.00103715,120]
[331439598,1720409442448,-302.52654225,0.00103724,18]
[331439599,1720409442458,-500.0,0.00103724,120]
[331439600,1720409442467,-500.0,0.00103724,120]
[331439601,1720409442477,-1318.44,0.00103733,120]
[331439602,1720409442486,-500.0,0.00103733,120]
[331439603,1720409442496,-861.12,0.00103733,120]
[331439604,1720409442505,-1626.07,0.00103733,120]
[331439605,1720409442515,-500.0,0.00103733,120]
[331439606,1720409442524,-500.0,0.00103733,120]
[331439607,1720409442534,-1627.54092865,0.00103733,120]
[331439647,1720409536968,453.0,0.0004,120]
[331439652,1720409686693,169.489917,0.00021096,2]
[331439663,1720409772806,10000.0,0.00035,2]
[331439664,1720409774093,162966.10150082,0.00038722,120]
[331439665,1720409787409,10000.0,0.00035,2]
[331439667,1720409795792,3337.93500686,0.00035,2]
[331439672,1720409820452,10000.0,0.0003,2]
[331439693,1720409889996,284.22582068,0.0003,3]
[331439694,1720409891484,500.0,0.0003,5]
[331439708,1720410227969,170.0759601,0.00021096,2]
[331439713,1720410353179,-815.85780395,0.00034989,4]
[331439714,1720410353201,-656.78811929,0.00035,2]
[331439718,1720410433087,-3728.20158677,0.00035,2]
[331439719,1720410433112,-2277.07528708,0.00035,2]
[331439720,1720410433132,-1202.34331483,0.00035292,60]
[331439721,1720410433156,-867.42507074,0.00036809,2]
[331439722,1720410447261,-600.0,0.00036809,2]
[331439725,1720410541223,-1033.37372921,0.00036809,2]
[331439727,1720410541261,-292.54556223,0.00036809,2]
[331439728,1720410541296,-1033.37372921,0.00036809,2]
[331439729,1720410541338,-1033.37372921,0.00036809,2]
[331439730,1720410541462,-7.3536188,0.00036809,2]
[331439732,1720410568096,-200.0,0.00036672,30]
[331439733,1720410568119,-883.46515125,0.00037999,4]
[331439734,1720410568258,-795.97,0.00038736,30]
[331439735,1720410568284,-155.10844789,0.00039393,4]
[331439736,1720410568306,-219.93570201,0.00039393,2]
[331439737,1720410568327,-198.01271432,0.00039994,2]
[331439738,1720410568348,-209.44492491,0.00039994,4]
[331439739,1720410568368,-277.54856702,0.00039999,4]
[331439740,1720410568387,-151.0,0.0004,120]
[331439741,1720410568407,-4600.40853538,0.00046,120]
[331439742,1720410574011,155.06564544,0.00044616,4]
[331439757,1720410611096,2207.91553816,0.00044616,20]
[331439816,1720410638028,-199.48958882,0.00038736,2]
[331439818,1720410638039,-300.0,0.00038736,2]
[331439820,1720410638048,-510.20601581,0.00038736,2]
[331439822,1720410638058,-288.77894306,0.00038736,2]
[331439824,1720410638068,-317.93960713,0.00038736,2]
[331439826,1720410638077,-283.68646285,0.00038736,2]
[331439828,1720410638087,-581.27684707,0.00038736,2]
[331439830,1720410638097,-153.14792914,0.00038736,2]
[331439832,1720410638107,-49154.71487762,0.00046,120]
[331439834,1720410638117,-163.15935804,0.00048384,28]
[331439836,1720410638127,-151.0,0.00056658,120]
[331439838,1720410638138,-513.5312704,0.00057534,120]
[331439840,1720410638148,-1208.57,0.00057534,120]
[331439842,1720410638157,-500.0,0.00057534,120]
[331439844,1720410638167,-500.0,0.00057534,120]
[331439846,1720410638177,-789.36,0.00057534,120]
[331439848,1720410638186,-1490.56,0.00057534,120]
[331439850,1720410638200,-500.0,0.00057534,120]
[331439852,1720410638210,-500.0,0.00057534,120]
[331439854,1720410638219,-3843.45,0.00057534,120]
[331439856,1720410638229,-500.0,0.00057534,120]
[331439858,1720410638239,-500.0,0.00059898,120]
[331439860,1720410638249,-500.0,0.00059999,120]
[331439863,1720410638259,-500.0,0.00059999,120]
[331439864,1720410638270,-2000.0,0.0006,120]
[331439866,1720410638280,-2000.0,0.0006,120]
[331439868,1720410638289,-1099.98029218,0.0006,120]
[331439870,1720410638298,-2740.23917165,0.0006,120]
[331439872,1720410638308,-682.10612986,0.0006,12]
[331439874,1720410638318,-1393.76767121,0.0006,120]
[331439876,1720410638328,-4261.1939659,0.000614,120]
[331439878,1720410638337,-302.52654225,0.00061789,8]
[331439880,1720410638346,-500.0,0.00061798,120]
[331439882,1720410638355,-500.0,0.00061798,120]
[331439884,1720410638365,-500.0,0.00061798,120]
[331439895,1720410638464,-929.05,0.00061798,120]
[331439897,1720410638473,-560.81,0.00061798,120]
[331439899,1720410638483,-3078.26,0.00061798,120]
[331439901,1720410638492,-3798.07,0.00061798,120]
[331439903,1720410638502,-500.0,0.00061798,120]
[331439905,1720410638512,-755.67,0.00061798,120]
[331439907,1720410638521,-500.0,0.00061799,120]
[331439908,1720410638531,-500.0,0.00061799,120]
[331439910,1720410638540,-500.0,0.00061799,120]
[331439912,1720410638550,-506.79,0.00061799,120]
[331439915,1720410638560,-1636.62,0.00061799,120]
[331439916,1720410638569,-500.0,0.00061799,120]
[331439918,1720410638579,-500.0,0.00061799,120]
[331439920,1720410638589,-500.0,0.00061799,120]
[331439922,1720410638599,-500.00000004,0.00061799,30]
[331439924,1720410638609,-500.0,0.00061799,120]
[331439926,1720410638619,-3000.0,0.000618,120]
[331439928,1720410638628,-1208.57,0.00063013,120]
[331439930,1720410638639,-789.36,0.00063013,120]
[331439932,1720410638648,-1490.56,0.00063013,120]
[331439934,1720410638656,-500.0,0.00063013,120]
[331439936,1720410638666,-500.0,0.00063013,120]
[331439938,1720410638675,-3843.45,0.00063013,120]
[331439940,1720410638684,-500.0,0.00063013,120]
[331439942,1720410638694,-500.0,0.00065378,120]
[331439944,1720410638703,-3000.0,0.00066326,120]
[331439946,1720410638712,-500.0,0.00067277,120]
[331439948,1720410638721,-500.0,0.00067278,120]
[331439950,1720410638731,-500.0,0.00067278,120]
[331439952,1720410638740,-929.05,0.00067278,120]
[331439954,1720410638749,-560.81,0.00067278,120]
[331439956,1720410638759,-3078.26,0.00067278,120]
[331439957,1720410638769,-3798.07,0.00067278,120]
[331439959,1720410638779,-500.0,0.00067278,120]
[331439962,1720410638789,-755.67,0.00067278,120]
[331439963,1720410638799,-500.0,0.00067279,120]
[331439965,1720410638808,-500.5210734,0.00067279,120]
[331439967,1720410638818,-500.0,0.00067279,120]
[331439969,1720410638828,-506.79,0.00067279,120]
[331439971,1720410638838,-1636.62,0.00067279,120]
[331439973,1720410638848,-500.0,0.00067279,120]
[331439975,1720410638858,-500.0,0.00067279,120]
[331439977,1720410638868,-500.0,0.00067279,120]
[331439979,1720410638878,-500.0,0.00067279,120]
[331439981,1720410638889,-1208.57,0.00068493,120]
[331439983,1720410638899,-789.36,0.00068493,120]
[331439985,1720410638910,-1490.56,0.00068493,120]
[331439987,1720410638919,-500.0,0.00068493,120]
[331439989,1720410638929,-500.0,0.00068493,120]
[331439991,1720410638939,-3843.45,0.00068493,120]
[331439993,1720410638948,-500.0,0.00068493,120]
[331439995,1720410638958,-500.0,0.00069799,120]
[331439997,1720410638968,-1999.80000099,0.000698,120]
[331439999,1720410638978,-3000.0,0.00070852,120]
[331440001,1720410638988,-500.0,0.00070857,120]
[331440003,1720410638998,-153.0,0.00071053,120]
[331440005,1720410639008,-302.52654225,0.00072637,10]
[331440007,1720410639019,-2000.0,0.00072657,120]
[331440009,1720410639029,-178.3896135,0.00072657,2]
[331440011,1720410639040,-5951.97,0.00072717,3]
[331440013,1720410639051,-7142.36,0.00072727,3]
[331440015,1720410639061,-8570.83,0.00072737,3]
[331440017,1720410639071,-10285.0,0.00072747,3]
[331440018,1720410639082,-500.0,0.00072757,120]
[331440019,1720410639092,-500.0,0.00072757,120]
[331440020,1720410639103,-929.05,0.00072757,120]
[331440021,1720410639113,-560.81,0.00072757,120]
[331440022,1720410639124,-3078.26,0.00072757,120]
[331440023,1720410639138,-3798.07,0.00072757,120]
[331440024,1720410639149,-500.0,0.00072757,120]
[331440025,1720410639159,-755.67,0.00072757,120]
[331440026,1720410639169,-516.00860824,0.00072757,120]
[331440027,1720410639179,-500.0,0.00072758,120]
[331440028,1720410639190,-500.0,0.00072758,120]
[331440029,1720410639204,-506.79,0.00072758,120]
[331440030,1720410639215,-1636.62,0.00072758,120]
[331440031,1720410639226,-500.0,0.00072758,120]
[331440032,1720410639237,-500.0,0.00072758,120]
[331440033,1720410639248,-500.0,0.00072758,120]
[331440034,1720410639258,-500.0,0.00072758,120]
[331440035,1720410639270,-151.0,0.00073315,120]
[331440036,1720410639280,-302.52654225,0.00073962,11]
[331440037,1720410639290,-1208.57,0.00073972,120]
[331440038,1720410639301,-789.36,0.00073972,120]
[331440039,1720410639311,-1490.56,0.00073972,120]
[331440040,1720410639322,-500.0,0.00073972,120]
[331440041,1720410639332,-500.0,0.00073972,120]
[331440042,1720410639343,-3843.45,0.00073972,120]
[331440043,1720410639354,-500.0,0.00073972,120]
[331440044,1720410639365,-3000.0,0.00075378,120]
[331440045,1720410639375,-500.0,0.00076336,120]
[331440046,1720410639387,-500.0,0.00078236,120]
[331440047,1720410639398,-500.0,0.00078236,120]
[331440048,1720410639409,-500.0,0.00078236,120]
[331440049,1720410639419,-929.05,0.00078236,120]
[331440050,1720410639431,-560.81,0.00078236,120]
[331440051,1720410639441,-3078.26,0.00078236,120]
[331440052,1720410639451,-3798.07,0.00078236,120]
[331440053,1720410639461,-500.0,0.00078236,120]
[331440054,1720410639471,-755.67,0.00078236,120]
[331440055,1720410639480,-500.0,0.00078237,120]
[331440056,1720410639490,-500.0,0.00078238,120]
[331440058,1720410639500,-500.0,0.00078238,120]
[331440060,1720410639510,-506.79,0.00078238,120]
[331440062,1720410639521,-1636.62,0.00078238,120]
[331440065,1720410639532,-500.0,0.00078238,120]
[331440067,1720410639542,-500.0,0.00078238,120]
[331440068,1720410639552,-500.0,0.00078238,120]
[331440069,1720410639561,-500.0,0.00078238,120]
[331440070,1720410639572,-1208.57,0.00079452,120]
[331440071,1720410639582,-789.36,0.00079452,120]
[331440072,1720410639592,-1490.56,0.00079452,120]
[331440073,1720410639602,-500.0,0.00079452,120]
[331440074,1720410639613,-500.0,0.00079452,120]
[331440075,1720410639624,-3843.45,0.00079452,120]
[331440076,1720410639637,-500.0,0.00079452,120]
[331440077,1720410639647,-2000.0,0.000798,120]
[331440078,1720410639657,-1685.86536114,0.000798,120]
[331440084,1720410640037,-314.13463886,0.000798,120]
[331440085,1720410640047,-1647.36633237,0.000798,120]
[331440086,1720410640059,-352.63366763,0.000798,120]
[331440087,1720410640069,-647.35970287,0.000798,120]
[331440088,1720410640084,-1352.64029713,0.000798,120]
[331440089,1720410640094,-2000.0,0.000798,120]
[331440090,1720410640104,-2000.0,0.000798,120]
[331440091,1720410640114,-2000.0,0.000798,120]
[331440092,1720410640123,-302.52654225,0.00079894,12]
[331440093,1720410640133,-569.13037252,0.00079903,120]
[331440094,1720410640145,-500.0,0.00079903,120]
[331440095,1720410640155,-548.61874223,0.00079903,120]
[331440096,1720410640164,-500.0,0.00079903,120]
[331440097,1720410640174,-500.0,0.00079903,120]
[331440098,1720410640183,-500.0,0.00079903,120]
[331440099,1720410640194,-500.0,0.00079903,120]
[331440100,1720410640206,-500.0,0.00079903,120]
[331440101,1720410640216,-500.0,0.00079903,120]
[331440102,1720410640225,-500.0,0.00079903,120]
[331440103,1720410640236,-500.0,0.00079903,120]
[331440104,1720410640245,-500.0,0.00079903,120]
[331440105,1720410640254,-500.0,0.00079903,120]
[331440106,1720410640263,-500.0,0.00079903,120]
[331440107,1720410640273,-500.0,0.00079903,120]
[331440108,1720410640283,-500.0,0.00079903,120]
[331440109,1720410640293,-500.0,0.00079903,120]
[331440110,1720410640301,-500.0,0.00079903,120]
[331440111,1720410640310,-500.0,0.00079903,120]
[331440112,1720410640319,-500.0,0.00079903,120]
[331440113,1720410640328,-500.0,0.00079903,120]
[331440114,1720410640337,-500.0,0.00079903,120]
[331440115,1720410640346,-500.0,0.00079903,120]
[331440116,1720410640355,-500.0,0.00079903,120]
[331440117,1720410640364,-500.0,0.00079903,120]
[331440118,1720410640374,-500.0,0.00079903,120]
[331440119,1720410640383,-500.0,0.00079903,120]
[331440120,1720410640393,-210.39459209,0.00079903,120]
[331440121,1720410640402,-3000.0,0.00079904,120]
[331440122,1720410640411,-500.0,0.00081816,120]
[331440123,1720410640421,-500.0,0.00083716,120]
[331440124,1720410640430,-929.05,0.00083716,120]
[331440125,1720410640440,-560.81,0.00083716,120]
[331440126,1720410640449,-3078.26,0.00083716,120]
[331440127,1720410640459,-3798.07,0.00083716,120]
[331440128,1720410640468,-352.21962702,0.00083716,120]
[331440129,1720410640477,-755.67,0.00083716,120]
[331440130,1720410640486,-495.37186148,0.00083717,120]
[331440188,1720410745312,169.489917,0.00021096,2]
[331440190,1720410798382,-618.99346542,0.000458,30]
[331440191,1720410798405,-306.7904281,0.00046483,2]
[331440192,1720410798428,-316.2472522,0.00046483,2]
[331440193,1720410802132,719.46985428,0.00043834,2]
[331440200,1720411467575,171.751585,0.00021096,2]
[331440203,1720411557149,-924.33587606,0.00037999,4]
[331440205,1720411569238,221.67891403,0.00021096,2]
[331440208,1720411636096,-365.86905712,0.00037899,2]
[331440209,1720411643119,-1054.65620403,0.00037899,2]
[331440210,1720411645988,784.56184753,0.0002557,2]
[331440211,1720411668791,168.08974609,0.0003,10]
[331440222,1720411754121,-742.75440298,0.00035,30]
[331440223,1720411754142,-749.13066494,0.00036351,21]
[331440224,1720411754165,-155.40087376,0.00036363,4]
[331440225,1720411754185,-151.0,0.0004,120]
[331440226,1720411754205,-154.49788188,0.0004,4]
[331440227,1720411754224,-863.41253749,0.00042398,4]
[331440228,1720411754245,-1899.44420457,0.00042999,4]
[331440229,1720411754265,-160.22081,0.00044814,2]
[331440230,1720411754286,-250.0,0.00045288,2]
[331440231,1720411755493,250.53109566,0.00039393,10]
[331440244,1720411789882,668.92964396,0.00036363,30]
[331440245,1720411803152,435.16106356,0.00036363,4]
[331440268,1720411838009,-151.0,0.00056658,120]
[331440269,1720411838021,-500.0,0.00057534,120]
[331440270,1720411838032,-500.0,0.00057534,120]
[331440271,1720411838042,-500.0,0.00057534,120]
[331440272,1720411838053,-500.0,0.00057534,120]
[331440273,1720411838063,-837.73,0.00057534,120]
[331440274,1720411838073,-400.36228808,0.00057534,120]
[331440275,1720411838090,-99.63771192,0.00057534,120]
[331440276,1720411838100,-500.0,0.00057534,120]
[331440277,1720411838110,-498.78324801,0.00057534,120]
[331440278,1720411838120,-1568.42,0.00057534,120]
[331440279,1720411838129,-500.0,0.00057534,120]
[331440280,1720411838139,-500.0,0.00057534,120]
[331440282,1720411838149,-500.00000004,0.00057534,40]
[331440283,1720411838158,-500.0,0.00057534,120]
[331440284,1720411838168,-2000.0,0.000605,120]
[331440285,1720411838179,-500.0,0.00061798,120]
[331440286,1720411838189,-3000.0,0.000618,120]
[331440287,1720411838198,-2000.0,0.000621,120]
[331440288,1720411838208,-2000.0,0.000621,120]
[331440289,1720411838219,-2000.0,0.000621,120]
[331440290,1720411838230,-2000.0,0.000621,120]
[331440291,1720411838240,-2000.0,0.000625,120]
[331440292,1720411838250,-500.0,0.00063013,120]
[331440293,1720411838260,-500.0,0.00063013,120]
[331440294,1720411838270,-498.50599538,0.00063013,120]
[331440295,1720411838279,-500.0,0.00063013,120]
[331440296,1720411838289,-837.73,0.00063013,120]
[331440297,1720411838299,-214.18582089,0.00063013,120]
[331440298,1720411838308,-500.0,0.00063013,120]
[331440299,1720411838318,-1568.42,0.00063013,120]
[331440300,1720411838328,-500.0,0.00063013,120]
[331440301,1720411838338,-500.0,0.00063013,120]
[331440302,1720411838347,-500.0,0.00063013,120]
[331440303,1720411838357,-2000.0,0.000645,120]
[331440304,1720411838367,-3000.0,0.0006623,120]
[331440305,1720411838377,-500.0,0.00066494,120]
[331440306,1720411838386,-500.0,0.00066494,120]
[331440307,1720411838396,-620.0,0.00066494,120]
[331440308,1720411838406,-1213.15,0.00066496,120]
[331440309,1720411838415,-1496.21,0.00066496,120]
[331440310,1720411838425,-500.0,0.00066496,120]
[331440311,1720411838435,-500.0,0.00066496,120]
[331440312,1720411838445,-792.35,0.00066496,120]
[331440313,1720411838455,-500.0,0.00066496,120]
[331440314,1720411838465,-3858.01,0.00066496,120]
[331440315,1720411838474,-500.0,0.00066496,120]
[331440316,1720411838484,-3089.92,0.00066496,120]
[331440317,1720411838494,-500.0,0.00066496,120]
[331440318,1720411838503,-644.46,0.00066497,120]
[331440319,1720411838512,-500.0,0.00066497,120]
[331440320,1720411838522,-500.0,0.00066497,120]
[331440321,1720411838531,-500.0,0.00066497,120]
[331440322,1720411838540,-952.27,0.00066497,120]
[331440323,1720411838549,-500.0,0.00066497,120]
[331440324,1720411838558,-539.57,0.00066497,120]
[331440325,1720411838568,-500.0,0.00066497,120]
[331440326,1720411838577,-727.05,0.00066497,120]
[331440327,1720411838589,-3654.21,0.00066497,120]
[331440328,1720411838600,-590.06711689,0.00066499,120]
[331440329,1720411838609,-516.00860824,0.00066499,120]
[331440330,1720411838619,-500.0,0.00066499,120]
[331440331,1720411838629,-2000.0,0.000665,120]
[331440332,1720411838639,-2000.0,0.000665,120]
[331440333,1720411838648,-2000.0,0.000665,120]
[331440334,1720411838658,-2000.0,0.000665,120]
[331440335,1720411838671,-500.0,0.00067278,120]
[331440336,1720411838681,-10000.0,0.00068,30]
[331440337,1720411838691,-500.0,0.00068493,120]
[331440338,1720411838701,-500.0,0.00068493,120]
[331440339,1720411838710,-500.0,0.00068493,120]
[331440340,1720411838720,-837.73,0.00068493,120]
[331440341,1720411838732,-500.0,0.00068493,120]
[331440342,1720411838742,-1568.42,0.00068493,120]
[331440343,1720411838752,-500.0,0.00068493,120]
[331440344,1720411838762,-500.0,0.00068493,120]
[331440345,1720411838772,-500.0,0.00068493,120]
[331440346,1720411838783,-500.0,0.00068499,120]
[331440347,1720411838793,-2000.0,0.000685,120]
[331440348,1720411838802,-2000.0,0.000685,120]
[331440349,1720411838812,-500.0,0.00069999,120]
[331440350,1720411838822,-10000.0,0.0007,30]
[331440351,1720411838832,-26376.78,0.0007049,3]
[331440352,1720411838842,-2000.0,0.000705,120]
[331440354,1720411838852,-416.07304194,0.00070549,2]
[331440356,1720411838862,-153.0,0.00070601,120]
[331440358,1720411838872,-153.0,0.00070602,120]
[331440360,1720411838882,-153.0,0.00070606,120]
[331440362,1720411838892,-153.0,0.00070643,120]
[331440364,1720411838902,-153.0,0.00070643,120]
[331440366,1720411838912,-3000.0,0.0007066,120]
[331440368,1720411838922,-153.0,0.00070682,120]
[331440370,1720411838931,-153.0,0.00070683,120]
[331440372,1720411838941,-1098.52268116,0.00070703,10]
[331440374,1720411838951,-1098.52268116,0.00070713,10]
[331440376,1720411838962,-153.0,0.00070731,120]
[331440378,1720411838974,-153.0,0.00070732,120]
[331440380,1720411838984,-1213.15,0.00071976,120]
[331440382,1720411838993,-1496.21,0.00071976,120]
[331440385,1720411839004,-500.0,0.00071976,120]
[331440386,1720411839014,-792.35,0.00071976,120]
[331440389,1720411839024,-500.0,0.00071976,120]
[331440391,1720411839035,-3858.01,0.00071976,120]
[331440393,1720411839046,-500.0,0.00071976,120]
[331440394,1720411839057,-3089.92,0.00071976,120]
[331440397,1720411839068,-500.0,0.00071976,120]
[331440398,1720411839080,-644.46,0.00071977,120]
[331440401,1720411839091,-500.0,0.00071977,120]
[331440403,1720411839102,-500.0,0.00071977,120]
[331440405,1720411839111,-952.27,0.00071977,120]
[331440406,1720411839121,-500.0,0.00071977,120]
[331440409,1720411839133,-539.57,0.00071977,120]
[331440410,1720411839143,-500.0,0.00071977,120]
[331440413,1720411839154,-727.05,0.00071977,120]
[331440415,1720411839165,-3654.21,0.00071977,120]
[331440417,1720411839175,-500.0,0.00071979,120]
[331440419,1720411839185,-2000.0,0.000725,120]
[331440420,1720411839195,-500.0,0.00072757,120]
[331440422,1720411839206,-151.0,0.00073315,120]
[331440425,1720411839216,-500.0,0.00073971,120]
[331440426,1720411839228,-500.0,0.00073972,120]
[331440428,1720411839239,-500.0,0.00073972,120]
[331440430,1720411839249,-500.0,0.00073972,120]
[331440432,1720411839259,-837.73,0.00073972,120]
[331440434,1720411839269,-500.0,0.00073972,120]
[331440436,1720411839280,-1568.42,0.00073972,120]
[331440438,1720411839290,-500.0,0.00073972,120]
[331440440,1720411839300,-500.0,0.00073972,120]
[331440442,1720411839310,-500.0,0.00073972,120]
[331440444,1720411839320,-1098.52268116,0.0007449,11]
[331440445,1720411839330,-500.0,0.00074499,120]
[331440447,1720411839341,-2000.0,0.000745,120]
[331440449,1720411839351,-2000.0,0.000745,120]
[331440451,1720411839362,-2000.0,0.000745,120]
[331440453,1720411839372,-147.44009115,0.000745,120]
[331440557,1720411840106,-21980.65,0.00073962,3]
[331440559,1720411840117,-1852.55990885,0.000745,120]
[331440561,1720411840126,-2000.0,0.000745,120]
[331440563,1720411840136,-2000.0,0.000745,120]
[331440565,1720411840149,-2000.0,0.000745,120]
[331440567,1720411840159,-2000.0,0.000745,120]
[331440570,1720411840169,-2000.0,0.000745,120]
[331440573,1720411840180,-2000.0,0.000745,120]
[331440576,1720411840190,-2000.0,0.00074989,120]
[331440578,1720411840200,-10000.0,0.00075,30]
[331440581,1720411840210,-3000.0,0.00075089,120]
[331440584,1720411840220,-160.0,0.00076,120]
[331440586,1720411840235,-500.0,0.00076489,120]
[331440588,1720411840244,-500.0,0.00076499,120]
[331440590,1720411840254,-2000.0,0.000765,120]
[331440592,1720411840264,-2000.0,0.000765,120]
[331440594,1720411840277,-2000.0,0.000765,120]
[331440596,1720411840286,-2000.0,0.000765,120]
[331440598,1720411840296,-2000.0,0.000765,120]
[331440600,1720411840306,-2000.0,0.000765,120]
[331440602,1720411840315,-2000.0,0.000765,120]
[331440604,1720411840325,-2000.0,0.000765,120]
[331440606,1720411840334,-2000.0,0.000765,120]
[331440608,1720411840344,-2000.0,0.000765,120]
[331440610,1720411840354,-1647.0,0.000765,120]
[331440612,1720411840363,-2000.0,0.000765,120]
[331440614,1720411840373,-2000.0,0.000765,120]
[331440616,1720411840383,-1098.52268116,0.00077445,12]
[331440618,1720411840392,-1213.15,0.00077455,120]
[331440620,1720411840402,-1496.21,0.00077455,120]
[331440622,1720411840411,-500.0,0.00077455,120]
[331440624,1720411840421,-792.35,0.00077455,120]
[331440626,1720411840430,-500.0,0.00077455,120]
[331440628,1720411840439,-3858.01,0.00077455,120]
[331440630,1720411840449,-3089.92,0.00077455,120]
[331440632,1720411840459,-500.0,0.00077455,120]
[331440634,1720411840468,-644.46,0.00077456,120]
[331440636,1720411840480,-500.0,0.00077456,120]
[331440638,1720411840489,-591.41360934,0.00077456,120]
[331440640,1720411840499,-952.27,0.00077456,120]
[331440649,1720411840577,-500.0,0.00077456,120]
[331440651,1720411840590,-539.57,0.00077456,120]
[331440653,1720411840600,-500.0,0.00077456,120]
[331440655,1720411840609,-727.05,0.00077456,120]
[331440657,1720411840618,-3654.21,0.00077456,120]
[331440659,1720411840628,-500.0,0.00077458,120]
[331440661,1720411840638,-500.0,0.00078236,120]
[331440662,1720411840648,-243.9130168,0.00078498,120]
[331440663,1720411840658,-235.1223181,0.00078498,120]
[331440664,1720411840667,-500.0,0.00078499,120]
[331440665,1720411840678,-500.0,0.00078499,120]
[331440666,1720411840687,-500.0,0.00078499,120]
[331440667,1720411840697,-500.0,0.00078499,120]
[331440668,1720411840706,-610.73539427,0.00078499,120]
[331440669,1720411840715,-500.0,0.00078499,120]
[331440670,1720411840726,-500.0,0.00078499,120]
[331440671,1720411840735,-500.0,0.00078499,120]
[331440672,1720411840745,-500.0,0.00078499,120]
[331440673,1720411840754,-500.0,0.00078499,120]
[331440674,1720411840763,-2000.0,0.000785,120]
[331440675,1720411840774,-500.0,0.00079452,120]
[331440676,1720411840783,-500.0,0.00079452,120]
[331440677,1720411840792,-500.0,0.00079452,120]
[331440678,1720411840801,-837.73,0.00079452,120]
[331440679,1720411840811,-500.0,0.00079452,120]
[331440680,1720411840820,-1568.42,0.00079452,120]
[331440681,1720411840829,-500.0,0.00079452,120]
[331440682,1720411840838,-500.0,0.00079452,120]
[331440683,1720411840847,-500.0,0.00079452,120]
[331440684,1720411840856,-3000.0,0.00079519,120]
[331440685,1720411840867,-416.07304191,0.00079599,2]
[331440686,1720411840876,-1098.52268116,0.0007999,12]
[331440687,1720411840885,-500.0,0.00079999,120]
[331440688,1720411840895,-999.0,0.00079999,120]
[331440689,1720411840904,-20000.0,0.0008,30]
[331440690,1720411840913,-685.16988562,0.0008041,120]
[331440691,1720411840923,-2000.0,0.000805,120]
[331440692,1720411840932,-5204.38,0.00082191,120]
[331440693,1720411840941,-2000.0,0.000825,120]